bitfinex-derivatives/quotes_ETHF0:USTF0_20250114
["timestamp","ask_amount","ask_price","bid_price","bid_amount"]
[1736844260763,0.31387,3187.2,3186.8,2.49679814]
[1736844261064,0.31387,3187.2,3187.0,0.31388]
[1736844262664,0.31385,3187.3,3187.0,0.31388]
[1736844262863,0.31387,3187.2,3187.0,0.31388]
[1736844263262,0.31387,3187.2,3187.1,0.31387]
[1736844264162,0.31387,3187.1,3187.0,0.31388]
[1736844264862,0.31386,3187.2,3187.1,0.31387]
[1736844265166,0.31386,3187.2,3186.8,2.49679814]
[1736844265366,0.31386,3187.2,3187.0,0.31387]
[1736844265664,0.31386,3187.2,3187.1,0.31387]
[1736844265864,0.9106,3187.5,3187.0,0.31388]
[1736844266060,0.31387,3187.2,3187.0,0.31388]
[1736844266466,0.9106,3187.5,3187.4,0.31384]
[1736844266761,3.2078,3187.8,3187.7,0.31381]
[1736844266966,3.5216,3187.8,3187.7,2.81060814]
[1736844267363,3.2078,3187.8,3187.7,2.81060814]
[1736844267965,3.2078,3188.4,3187.7,5.70459814]
[1736844268267,0.31377,3188.1,3188.0,0.31378]
[1736844268461,1.4319,3188.5,3188.0,2.49679814]
[1736844268761,0.9338,3188.5,3188.1,3.2078]
[1736844268961,0.9338,3188.5,3188.3,2.81053814]
[1736844268962,1.24754,3188.5,3188.3,2.81053814]
[1736844269155,0.31374,3188.4,3188.3,2.81054814]
[1736844270364,0.31372,3188.7,3188.5,0.31373]
[1736844270568,0.31372,3188.7,3188.3,2.49679814]
[1736844270760,0.4794,3188.9,3188.5,0.31373]
[1736844271165,0.31372,3188.7,3188.5,0.31373]
[1736844271366,4.1832,3189.0,3188.6,0.31372]
[1736844271865,0.31371,3188.7,3188.6,0.31372]
[1736844272564,0.31371,3188.8,3188.6,0.31372]
[1736844272967,0.31369,3188.9,3188.5,0.31372]
[1736844273173,4.1832,3189.0,3188.5,0.31372]
[1736844273471,0.31372,3188.7,3188.3,2.49679814]
[1736844273666,0.31372,3188.7,3188.4,0.31374]
[1736844274065,0.31373,3188.6,3188.4,0.31374]
[1736844274774,0.31369,3188.9,3188.6,0.31372]
[1736844275673,0.31369,3188.9,3188.6,2.81051814]
[1736844275874,0.31369,3188.9,3188.6,2.49679814]
[1736844276064,4.1832,3189.0,3188.7,0.31371]
[1736844276468,0.3137,3188.9,3188.7,0.31371]
[1736844276974,0.31371,3188.8,3188.6,2.81051814]
[1736844277169,4.1832,3189.0,3188.6,2.49679814]
[1736844277371,0.31371,3188.8,3188.6,2.81051814]
[1736844277570,0.31372,3188.7,3188.5,0.31373]
[1736844277969,0.31371,3188.8,3188.6,0.31372]
[1736844278169,0.31371,3188.8,3188.4,0.4671]
[1736844278170,0.31372,3188.7,3188.5,0.31373]
[1736844278370,4.1832,3189.0,3188.4,0.4671]
[1736844278672,0.31371,3188.7,3188.5,0.31373]
[1736844279670,0.31371,3188.7,3188.4,3.98864]
[1736844280171,0.9754,3189.0,3188.4,3.6749]
[1736844280375,0.9754,3189.0,3188.4,3.98864]
[1736844280575,0.31373,3188.6,3188.4,3.98864]
[1736844281075,0.31372,3188.7,3188.4,3.98864]
[1736844281275,0.31372,3188.7,3188.5,0.31373]
[1736844281477,0.31372,3188.7,3188.4,3.98864]
[1736844281972,0.31372,3188.7,3188.5,0.31373]
[1736844282173,0.31371,3188.8,3188.4,3.6749]
[1736844282372,0.31369,3188.9,3188.5,0.31372]
[1736844282570,0.31371,3188.7,3188.5,0.31372]
[1736844284573,0.9754,3189.0,3188.4,3.6749]
[1736844284779,0.31372,3188.6,3188.4,3.98864]
[1736844285271,0.31372,3188.6,3188.4,3.6749]
[1736844285578,0.31373,3188.5,3188.4,3.2078]
[1736844290481,0.4975,3188.7,3188.4,3.2078]
[1736844290677,0.81122,3188.7,3188.5,0.31372]
[1736844291381,0.81122,3188.7,3188.4,3.52154]
[1736844292082,0.81122,3188.7,3188.5,0.31373]
[1736844292485,0.31371,3188.7,3188.5,0.31373]
[1736844292783,0.31374,3188.5,3188.2,0.31375]
[1736844292980,0.31378,3188.0,3187.9,3.2078]
[1736844293376,0.3138,3187.8,3187.7,0.475]
[1736844293680,0.3138,3187.9,3187.7,0.475]
[1736844294784,4.6554,3188.4,3187.4,3.7075]
[1736844294985,0.31382,3187.6,3187.4,3.7075]
[1736844295176,0.9799,3187.8,3187.4,3.7075]
[1736844295377,0.31383,3187.6,3187.4,3.7075]
[1736844295572,0.31383,3187.5,3187.4,3.2078]
[1736844296070,0.31383,3187.5,3187.4,1.73467079]
[1736844296879,0.31387,3187.2,3187.0,0.31388]
[1736844297688,0.78458,3187.5,3186.8,3.2078]
[1736844297886,0.31388,3187.1,3186.9,0.31389]
[1736844298085,0.31389,3187.0,3186.8,3.5217]
[1736844298588,0.78458,3187.5,3186.8,3.5217]
[1736844298779,0.31388,3187.1,3186.8,3.5217]
[1736844298980,0.31388,3187.0,3186.8,3.5217]
[1736844299483,0.78458,3187.5,3186.8,3.2078]
[1736844299786,0.31389,3187.0,3186.8,3.2078]
[1736844299990,0.78463,3187.4,3186.8,3.2078]
[1736844300186,0.31388,3187.1,3186.7,4.07069814]
[1736844300486,0.78458,3187.5,3186.7,3.75679814]
[1736844300686,0.31388,3187.1,3186.8,0.3139]
[1736844300884,0.78458,3187.5,3186.7,3.75679814]
[1736844301084,0.31388,3187.0,3186.7,4.07070814]
[1736844301480,0.78464,3187.3,3186.7,3.75679814]
[1736844301682,0.31389,3186.9,3186.7,3.75679814]
[1736844302488,0.31388,3187.0,3186.7,4.07070814]
[1736844302686,0.78438,3187.1,3186.7,3.75679814]
[1736844302989,0.31388,3187.1,3186.8,0.3139]
[1736844303188,0.4705,3187.5,3187.0,2.49679814]
[1736844303392,0.31383,3187.5,3187.2,0.31385]
[1736844303586,0.31383,3187.5,3187.3,0.4725]
[1736844303791,3.2078,3187.6,3187.3,2.96929814]
[1736844304092,0.7844,3188.3,3187.3,2.96929814]
[1736844304093,3.2078,3188.2,3187.3,2.96929814]
[1736844304392,0.3138,3187.9,3187.5,0.31383]
[1736844304588,0.3138,3187.9,3187.6,0.31382]
[1736844304888,4.1585,3188.2,3187.4,1.26]
[1736844305190,0.31383,3187.5,3187.4,1.26]
[1736844305383,3.99232,3187.8,3187.2,3.2078]
[1736844305584,0.31385,3187.4,3187.1,0.80036]
[1736844305889,3.2078,3187.8,3187.3,2.49679814]
[1736844306195,0.31378,3188.0,3187.8,0.3138]
[1736844306493,0.31378,3188.0,3187.6,2.49679814]
[1736844306494,0.31379,3187.9,3187.7,0.7904]
[1736844306884,0.31379,3188.0,3187.8,0.3138]
[1736844307087,4.1585,3188.2,3187.7,0.4766]
[1736844307292,0.31377,3188.1,3187.9,0.31379]
[1736844307490,3.52156,3188.2,3188.0,0.31378]
[1736844307690,3.52156,3188.2,3187.9,2.49679814]
[1736844307691,3.2078,3188.2,3187.9,2.49679814]
[1736844307888,3.2078,3188.2,3187.8,0.4867]
[1736844308094,0.31379,3187.9,3187.8,0.4867]
[1736844308391,0.4939,3188.1,3187.3,2.49679814]
[1736844308594,0.4939,3188.1,3187.4,0.31383]
[1736844308595,0.31383,3187.6,3187.4,0.31383]
[1736844308892,0.31383,3187.6,3187.3,3.30584814]
[1736844309090,0.31383,3187.6,3187.3,2.99199814]
[1736844309394,0.31383,3187.6,3187.3,3.30583814]
[1736844309589,1.26366,3188.0,3187.4,0.31384]
[1736844309787,0.4792,3188.0,3187.4,0.31384]
[1736844310091,0.31381,3187.7,3187.5,0.76473]
[1736844310394,0.31381,3187.8,3187.5,0.76472]
[1736844311290,0.31381,3187.7,3187.5,0.4509]
[1736844311499,0.31382,3187.6,3187.5,0.4509]
[1736844311794,0.31382,3187.6,3187.2,3.7074]
[1736844311795,0.31385,3187.3,3187.2,3.2078]
[1736844312298,0.4553,3187.5,3187.0,1.26]
[1736844312596,0.31386,3187.3,3187.0,1.57388]
[1736844312894,0.31386,3187.3,3187.0,1.26]
[1736844313095,0.31386,3187.3,3187.1,0.31387]
[1736844313391,0.4553,3187.5,3187.0,3.75679814]
[1736844313392,0.31384,3187.4,3187.0,3.75679814]
[1736844313588,0.31384,3187.4,3187.2,0.31386]
[1736844313989,0.4553,3187.5,3187.1,0.31387]
[1736844313990,0.31385,3187.3,3187.1,0.31387]
[1736844314395,0.4553,3187.5,3187.0,3.75679814]
[1736844314695,0.31386,3187.3,3187.0,4.07067814]
[1736844314996,0.31386,3187.2,3187.0,3.75679814]
[1736844315292,0.4553,3187.5,3187.0,4.07067814]
[1736844316289,0.4553,3187.5,3187.0,3.75679814]
[1736844316496,0.31388,3187.0,3186.9,0.4953]
[1736844317787,0.4545,3187.3,3186.9,0.4953]
[1736844317989,0.31388,3187.0,3186.9,0.4953]
[1736844318393,0.4545,3187.3,3186.9,0.4953]
[1736844318593,0.4545,3187.3,3186.9,0.80918]
[1736844318793,0.31387,3187.1,3186.9,0.80918]
[1736844318990,0.31386,3187.2,3186.9,0.4953]
[1736844319291,0.31388,3187.1,3186.9,0.4953]
[1736844319599,0.31387,3187.2,3187.0,2.81066814]
[1736844319794,0.76913,3187.5,3187.3,0.31384]
[1736844319994,0.31382,3187.6,3187.4,0.78014]
[1736844320889,0.31383,3187.5,3187.4,0.4663]
[1736844321290,0.31386,3187.2,3187.1,3.2078]
[1736844321489,0.78456,3187.6,3186.9,0.9616]
[1736844321690,0.31388,3187.0,3186.9,0.9616]
[1736844322091,0.9562,3187.3,3186.9,0.9616]
[1736844322297,0.31387,3187.2,3186.9,0.9616]
[1736844322493,3.2078,3187.8,3187.3,0.31385]
[1736844322697,3.2078,3187.8,3187.1,3.2078]
[1736844322698,0.31382,3187.7,3187.4,2.81062814]
[1736844323089,0.31382,3187.7,3187.5,0.4548]
[1736844323291,0.31386,3187.2,3186.9,0.4953]
[1736844323599,3.99242,3187.4,3186.9,0.4953]
[1736844323794,0.31388,3187.0,3186.9,0.4953]
[1736844324198,3.99242,3187.4,3186.9,0.4953]
[1736844324595,0.31388,3187.1,3186.9,0.4953]
[1736844324896,0.31385,3187.3,3187.1,0.31387]
[1736844325102,0.9572,3187.6,3187.3,0.31385]
[1736844325401,0.9572,3187.6,3187.2,0.31386]
[1736844325694,0.31384,3187.4,3187.2,0.76866]
[1736844326104,0.31384,3187.5,3187.2,0.76866]
[1736844326289,0.9572,3187.6,3187.2,0.4548]
[1736844326492,1.27102,3187.6,3187.3,0.31384]
[1736844326693,0.31383,3187.5,3187.3,0.31384]
[1736844327002,0.31384,3187.4,3187.2,0.76866]
[1736844327201,0.9572,3187.6,3187.2,0.4548]
[1736844327499,0.31383,3187.5,3187.3,0.31385]
[1736844327902,0.9572,3187.6,3187.2,0.4548]
[1736844328101,0.4839,3187.6,3187.4,0.31383]
[1736844328302,0.31383,3187.5,3187.3,0.31385]
[1736844328499,0.4839,3187.6,3187.0,0.31387]
[1736844328702,0.31386,3187.2,3187.0,0.31387]
[1736844328902,0.4839,3187.6,3186.9,0.4953]
[1736844329205,1.26847,3187.6,3187.0,0.31388]
[1736844329400,0.78458,3187.5,3186.9,0.80918]
[1736844329594,0.4527,3187.4,3186.9,0.4953]
[1736844329806,0.31387,3187.2,3186.9,0.80918]
[1736844330001,0.31387,3187.2,3186.9,0.4953]
[1736844330203,0.31387,3187.2,3187.0,0.31388]
[1736844330706,0.4527,3187.4,3186.9,0.4953]
[1736844331007,0.31388,3187.0,3186.9,0.4953]
[1736844331201,4.44513,3187.4,3186.9,0.4953]
[1736844331406,0.31388,3187.1,3186.9,0.4953]
[1736844331706,0.31388,3187.0,3186.7,3.2078]
[1736844331900,0.31388,3187.0,3186.8,0.3139]
[1736844333406,0.4798,3187.3,3186.7,3.2078]
[1736844333608,0.3139,3186.9,3186.7,3.52171]
[1736844334006,0.3139,3186.9,3186.7,3.2078]
[1736844334203,1.26444,3187.3,3186.7,3.2078]
[1736844334404,0.3139,3186.9,3186.7,3.2078]
[1736844334598,0.31386,3187.2,3186.7,3.5217]
[1736844334797,0.31389,3186.9,3186.7,3.5217]
[1736844335005,0.4798,3187.3,3186.8,2.49679814]
[1736844335209,3.6981,3187.8,3187.1,2.49679814]
[1736844335408,4.1825,3187.8,3187.4,2.81062814]
[1736844335613,4.1825,3187.8,3187.4,2.49679814]
[1736844335803,4.1825,3187.8,3187.2,0.4976]
[1736844336003,0.78456,3187.6,3187.2,0.4976]
[1736844336198,0.31385,3187.3,3187.2,0.4976]
[1736844337113,0.31385,3187.4,3187.1,0.31386]
[1736844337405,0.31385,3187.3,3187.1,0.81146]
[1736844338008,0.31386,3187.2,3187.1,0.4976]
[1736844338508,0.31386,3187.3,3187.1,0.4976]
[1736844338710,0.78457,3187.6,3187.1,0.4976]
[1736844339007,0.78457,3187.6,3186.8,2.49679814]
[1736844339206,0.31389,3187.0,3186.7,5.2576]
[1736844339411,0.31389,3187.0,3186.8,0.31389]
[1736844340007,0.4797,3187.2,3186.7,4.9437]
[1736844340008,0.3139,3186.8,3186.7,4.9437]
[1736844340213,0.31389,3186.9,3186.7,5.25761]
[1736844340410,0.3139,3186.8,3186.7,3.6837]
[1736844341100,0.9252,3187.1,3186.7,3.6837]
[1736844341505,0.31389,3187.0,3186.7,3.9976]
[1736844341706,0.31389,3186.9,3186.7,3.9976]
[1736844342411,0.3139,3186.8,3186.7,3.6837]
[1736844342613,0.7683,3186.8,3186.7,3.2078]
[1736844342804,3.26509814,3186.8,3186.7,3.2078]
[1736844343001,3.26509814,3186.8,3186.1,0.9627]
[1736844343002,0.31395,3186.3,3186.1,4.48447]
[1736844343613,1.23949,3186.7,3186.1,4.1705]
[1736844344005,0.31395,3186.3,3186.1,4.1705]
[1736844344603,0.31394,3186.4,3186.1,4.48446]
[1736844344804,0.4547,3186.7,3186.1,4.1705]
[1736844345008,0.31394,3186.4,3186.2,0.31395]
[1736844346714,0.31393,3186.5,3186.3,0.31395]
[1736844346909,0.4547,3186.7,3186.4,0.31393]
[1736844346910,0.31392,3186.6,3186.4,0.31393]
[1736844347613,0.4547,3186.7,3186.2,2.49679814]
[1736844347912,3.2078,3186.9,3186.8,0.3139]
[1736844348114,3.2078,3186.9,3186.7,0.31391]
[1736844348115,3.52169,3186.9,3186.7,0.31391]
[1736844348499,3.2078,3186.9,3186.7,0.31391]
[1736844348704,3.2078,3186.9,3186.7,0.76741]
[1736844348909,3.2078,3186.9,3186.7,0.4535]
[1736844349120,3.2078,3187.4,3186.8,2.49679814]
[1736844349309,3.52164,3187.4,3187.1,2.49679814]
[1736844349515,0.31385,3187.3,3186.9,0.31389]
[1736844349717,3.99241,3187.4,3186.8,0.3139]
[1736844350010,0.31388,3187.0,3186.8,0.3139]
[1736844350313,3.99241,3187.4,3186.7,3.6613]
[1736844350515,0.31387,3187.2,3186.9,0.31389]
[1736844350715,0.31387,3187.2,3186.7,3.6613]
[1736844351016,0.31385,3187.3,3187.0,0.31388]
[1736844351218,3.2078,3187.4,3186.8,2.49679814]
[1736844351510,3.2078,3187.4,3186.9,0.78473]
[1736844351818,3.52164,3187.4,3187.2,0.31386]
[1736844352220,3.2078,3187.4,3187.3,0.31385]
[1736844353215,3.2078,3187.4,3187.3,0.76505]
[1736844353810,3.2078,3187.4,3187.3,0.4512]
[1736844354019,3.52164,3187.4,3187.3,0.4512]
[1736844354608,3.2078,3187.4,3187.3,0.4512]
[1736844354817,3.2078,3187.4,3187.3,0.76505]
[1736844361027,3.2078,3187.4,3187.3,2.02405]
[1736844361227,0.3138,3187.9,3187.6,0.31382]
[1736844361526,3.2078,3188.0,3187.8,0.3138]
[1736844361730,0.9723,3188.2,3187.7,5.70459814]
[1736844362025,3.2078,3188.4,3188.2,0.31376]
[1736844362224,3.2078,3188.4,3188.3,3.48449814]
[1736844362429,3.2078,3188.4,3188.3,3.79824814]
[1736844362622,3.2078,3188.4,3188.3,3.48449814]
[1736844362820,3.2078,3188.4,3188.3,3.79824814]
[1736844363426,4.5068,3188.9,3188.3,3.48449814]
[1736844363623,4.1931,3188.9,3188.3,3.48449814]
[1736844363834,0.9853,3188.9,3188.3,3.48449814]
[1736844364130,0.31371,3188.8,3188.5,0.31373]
[1736844365429,0.9853,3188.9,3188.3,0.9877]
[1736844365632,0.9853,3188.9,3188.3,0.4948]
[1736844365633,0.31373,3188.5,3188.3,0.4948]
[1736844365829,0.31374,3188.4,3188.2,4.4668]
[1736844366229,0.31374,3188.4,3188.2,3.2078]
[1736844366729,0.78437,3188.4,3187.8,3.2078]
[1736844366929,0.31379,3187.9,3187.8,3.2078]
[1736844367133,7.86898814,3188.3,3187.5,2.02912]
[1736844367523,0.3138,3187.8,3187.5,2.02912]
[1736844367922,1.09819,3188.2,3187.5,2.02913]
[1736844368134,0.3138,3187.8,3187.5,2.02913]
[1736844368429,0.31376,3188.2,3187.9,0.31379]
[1736844368622,4.1105,3188.3,3188.1,0.31377]
[1736844368823,4.1105,3188.3,3188.0,2.49679814]
[1736844369024,4.1105,3188.3,3188.2,0.31376]
[1736844369826,0.31369,3189.0,3188.7,0.31371]
[1736844370031,0.77059,3189.0,3188.7,0.31371]
[1736844370335,0.31371,3188.8,3188.5,2.81052814]
[1736844370636,0.4977,3188.9,3188.5,2.49679814]
[1736844371128,0.3137,3188.8,3188.2,4.4668]
[1736844371430,0.4852,3188.7,3188.2,3.2078]
[1736844371636,0.31375,3188.3,3188.2,3.2078]
[1736844372035,0.31379,3188.0,3187.7,5.2736]
[1736844372230,0.4899,3188.2,3187.7,4.9598]
[1736844372533,0.31378,3188.1,3187.8,0.3138]
[1736844372833,0.4899,3188.2,3187.8,0.3138]
[1736844373032,0.31378,3188.1,3187.8,0.3138]
[1736844373235,0.31378,3188.0,3187.7,5.2736]
[1736844373635,0.31379,3187.9,3187.7,5.2736]
[1736844373938,0.4852,3188.1,3187.7,1.752]
[1736844374235,0.4852,3188.1,3187.7,1.57281]
[1736844374438,0.31379,3188.0,3187.7,1.57281]
[1736844374631,0.31379,3188.0,3187.8,0.3138]
[1736844374831,0.79898,3188.1,3187.8,0.3138]
[1736844375926,0.31378,3188.0,3187.8,0.3138]
[1736844376337,0.79898,3188.1,3187.8,0.3138]
[1736844377736,0.4852,3188.1,3187.6,2.49679814]
[1736844378338,0.31379,3188.0,3187.7,0.31381]
[1736844378736,0.31379,3188.0,3187.6,2.49679814]
[1736844378937,0.31379,3188.0,3187.8,0.3138]
[1736844379134,0.4852,3188.1,3187.5,1.259]
[1736844379337,0.4852,3188.1,3187.4,0.4683]
[1736844379536,0.31381,3187.7,3187.5,0.31383]
[1736844379736,0.4546,3187.6,3187.4,0.4683]
[1736844380038,0.4546,3187.6,3187.5,0.31383]
[1736844381131,0.4852,3188.1,3187.4,0.4683]
[1736844381335,0.4852,3188.1,3187.8,0.3138]
[1736844381336,1.73888,3188.1,3187.8,0.3138]
[1736844381543,1.4251,3188.1,3187.9,0.31379]
[1736844382140,1.4251,3188.1,3187.6,2.49679814]
[1736844382336,1.4251,3188.1,3187.9,0.31379]
[1736844382730,0.9399,3188.1,3187.6,3.28134814]
[1736844382937,3.2078,3188.3,3188.2,0.31376]
[1736844383243,3.2078,3188.3,3187.9,2.49679814]
[1736844383540,0.31376,3188.2,3187.9,2.81057814]
[1736844383735,0.77906,3188.2,3187.9,2.49679814]
[1736844383936,0.77906,3188.2,3188.0,0.31378]
[1736844386248,0.4653,3188.2,3188.1,0.31377]
[1736844386443,0.77906,3188.2,3188.1,0.31377]
[1736844386647,0.4653,3188.2,3188.1,0.31377]
[1736844387849,0.77906,3188.2,3188.1,0.31377]
[1736844390749,0.31378,3188.1,3188.0,0.31378]
[1736844390949,0.4653,3188.2,3187.7,3.2078]
[1736844391142,0.31379,3188.0,3187.9,0.31378]
[1736844391746,0.31378,3188.1,3188.0,0.31378]
[1736844392147,0.31379,3187.9,3187.8,0.31379]
[1736844392343,0.3138,3187.8,3187.7,1.259]
[1736844392544,0.4568,3187.8,3187.7,1.57281]
[1736844392749,0.7706,3187.8,3187.7,1.259]
[1736844394351,0.7706,3187.8,3187.7,0.66608554]
[1736844395846,0.4653,3188.2,3187.7,0.66608554]
[1736844396047,0.77907,3188.2,3187.8,0.3138]
[1736844396246,0.77907,3188.2,3187.7,0.66608554]
[1736844396247,0.77907,3188.2,3187.7,3.87388554]
[1736844396448,0.31377,3188.1,3187.7,3.87388554]
[1736844396746,0.31379,3188.0,3187.7,0.66608554]
[1736844396951,0.31379,3188.0,3187.8,0.3138]
[1736844397246,0.4653,3188.2,3187.5,0.4803]
[1736844397247,0.78444,3188.1,3187.5,0.4803]
[1736844397449,0.31382,3187.6,3187.5,0.4803]
[1736844397650,0.78446,3188.0,3187.5,0.79413]
[1736844397651,0.31382,3187.7,3187.5,0.79413]
[1736844397854,0.4704,3187.9,3187.5,0.4803]
[1736844398044,0.4586,3187.8,3187.4,0.4683]
[1736844398252,0.31381,3187.7,3187.4,0.78213]
[1736844398555,0.4633,3187.7,3187.4,0.78213]
[1736844398951,0.4633,3187.7,3187.4,0.4683]
[1736844399152,5.70459814,3187.6,3186.9,3.2078]
[1736844399447,0.31388,3187.0,3186.9,3.2078]
[1736844399646,0.31387,3187.1,3186.9,3.2078]
[1736844400042,0.31388,3187.0,3186.9,3.2078]
[1736844400246,0.31388,3187.1,3186.9,3.2078]
[1736844400650,0.31387,3187.2,3186.9,3.52168]
[1736844401041,0.31387,3187.2,3186.9,3.2078]
[1736844401252,0.4685,3187.3,3187.0,0.31388]
[1736844401449,3.2078,3187.6,3187.0,3.28149814]
[1736844401756,0.31384,3187.5,3187.2,0.31386]
[1736844402352,0.31385,3187.3,3187.1,1.27857]
[1736844402552,0.31385,3187.4,3187.1,1.27857]
[1736844403554,3.2078,3187.6,3187.1,0.4874]
[1736844403756,0.31386,3187.3,3187.1,0.4874]
[1736844403949,0.31384,3187.4,3187.1,0.4874]
[1736844404158,0.31386,3187.2,3187.0,0.31387]
[1736844404356,1.26289,3187.5,3186.9,3.52169]
[1736844404557,0.31387,3187.2,3186.9,3.52169]
[1736844405553,0.31387,3187.2,3186.9,3.2078]
[1736844405754,0.31385,3187.4,3187.1,0.31387]
[1736844405951,0.4783,3187.5,3186.9,3.2078]
[1736844406155,0.31386,3187.3,3187.1,0.31387]
[1736844407855,3.2078,3187.6,3187.0,2.49679814]
[1736844408053,3.2078,3187.6,3187.5,2.81062814]
[1736844408945,3.2078,3187.6,3187.5,0.31383]
[1736844409147,3.2078,3187.6,3187.3,1.4629]
[1736844409148,3.2078,3187.6,3187.3,0.9739]
[1736844409352,1.25283,3187.5,3187.3,1.28775]
[1736844409551,3.2078,3187.6,3187.3,0.9739]
[1736844409755,3.2078,3187.6,3187.5,0.31383]
[1736844411557,0.31381,3187.8,3187.5,0.31383]
[1736844412658,0.939,3187.9,3187.5,0.31383]
[1736844412856,0.31381,3187.7,3187.5,0.31383]
[1736844413057,0.3138,3187.8,3187.4,0.31383]
[1736844413360,0.31382,3187.6,3187.4,0.31383]
[1736844414358,0.31382,3187.6,3187.3,1.28774]
[1736844414653,1.7235,3187.9,3187.3,0.4907]
[1736844414849,0.4603,3187.5,3187.0,0.4757]
[1736844415047,0.31386,3187.2,3187.0,0.78958]
[1736844417049,0.78326,3187.3,3187.0,0.78957]
[1736844417256,0.78326,3187.3,3187.0,0.4757]
[1736844417460,0.4943,3187.4,3187.0,0.4757]
[1736844417862,0.80815,3187.4,3187.2,0.31386]
[1736844418551,0.31385,3187.3,3187.2,0.31386]
[1736844420159,0.4943,3187.4,3187.0,0.4757]
[1736844420655,0.31386,3187.2,3187.1,0.31387]
[1736844421861,0.31385,3187.3,3187.2,0.31386]
[1736844424458,0.31386,3187.3,3187.1,0.31386]
[1736844424662,0.31387,3187.2,3187.1,0.31386]
[1736844424860,0.4943,3187.4,3187.1,0.31386]
[1736844425057,0.31386,3187.2,3187.1,0.31386]
[1736844425952,0.4977,3187.6,3187.1,3.2078]
[1736844426154,0.4916,3187.7,3187.2,3.28145814]
[1736844426350,0.31381,3187.8,3187.3,0.78463]
[1736844426571,0.31381,3187.8,3187.5,2.49679814]
[1736844427061,3.2078,3188.0,3187.6,0.477]
[1736844427263,3.52159,3188.0,3187.8,0.3138]
[1736844427464,3.2078,3188.0,3187.8,0.3138]
[1736844427855,3.52159,3188.0,3187.8,0.3138]
[1736844428264,3.52159,3188.0,3187.7,0.31381]
[1736844428466,3.52159,3188.0,3187.8,0.3138]
[1736844429762,3.52159,3188.0,3187.6,0.477]
[1736844429763,3.2078,3188.0,3187.6,0.477]
[1736844430059,3.2078,3188.6,3187.9,6.01838814]
[1736844430267,3.52153,3188.6,3188.3,2.81054814]
[1736844430561,3.2078,3188.6,3188.4,0.31374]
[1736844430766,3.2078,3188.6,3188.4,0.78514]
[1736844430960,3.2078,3188.6,3188.5,0.31373]
[1736844431161,3.52153,3188.6,3188.4,0.4714]
[1736844431463,3.52153,3188.6,3188.0,0.9513]
[1736844431464,0.31374,3188.4,3188.1,0.31376]
[1736844431863,0.31374,3188.5,3188.2,0.31376]
[1736844432061,0.31377,3188.1,3188.0,0.9406]
[1736844432268,2.49679814,3188.5,3187.9,3.2078]
[1736844432471,3.2078,3188.6,3188.0,2.49679814]
[1736844432769,3.2078,3188.6,3188.1,0.4543]
[1736844432969,3.2078,3188.6,3188.1,0.9403]
[1736844433171,0.31374,3188.5,3188.2,0.31375]
[1736844433372,0.31372,3188.7,3188.4,0.31374]
[1736844433771,0.31374,3188.5,3188.2,0.31375]
[1736844433966,1.3956,3188.9,3188.1,0.9403]
[1736844434181,0.31372,3188.6,3188.4,0.31374]
[1736844434465,1.3956,3188.9,3188.1,0.9403]
[1736844434868,0.31374,3188.5,3188.3,0.31375]
[1736844435371,0.31373,3188.6,3188.3,0.31375]
[1736844435966,1.3956,3188.9,3188.3,0.31375]
[1736844436269,0.31374,3188.5,3188.3,0.31375]
[1736844436471,1.3956,3188.9,3188.4,0.31373]
[1736844436668,1.3956,3188.9,3188.1,0.9403]
[1736844436669,0.31373,3188.5,3188.3,0.31375]
[1736844436967,0.31373,3188.6,3188.4,0.31374]
[1736844437174,1.3956,3188.9,3188.1,0.9403]
[1736844437366,1.3956,3188.9,3188.6,0.31372]
[1736844437564,1.7093,3188.9,3188.3,5.70459814]
[1736844437768,0.31371,3188.8,3188.6,0.31371]
[1736844438469,0.31371,3188.8,3188.3,5.70459814]
[1736844438774,3.2078,3189.4,3189.3,0.31365]
[1736844439176,2.69265115,3189.4,3189.3,0.31365]
[1736844439674,1.24523115,3189.4,3189.3,0.31365]
[1736844441478,0.31361,3189.8,3189.2,3.75479814]
[1736844441687,0.31362,3189.7,3189.3,0.31365]
[1736844441976,0.31361,3189.8,3189.5,0.31363]
[1736844442983,3.6674,3189.9,3189.2,3.75479814]
[1736844443175,0.3136,3189.8,3189.5,0.31363]
[1736844443377,3.6674,3189.9,3189.2,3.75479814]
[1736844443578,0.4596,3189.9,3189.7,0.31361]
[1736844443769,0.4596,3189.9,3189.6,0.31362]
[1736844443975,0.7732,3189.9,3189.6,0.79152]
[1736844444383,0.4596,3189.9,3189.6,0.4779]
[1736844444678,0.7732,3189.9,3189.6,0.79152]
[1736844444872,0.4596,3189.9,3189.7,0.31361]
[1736844445281,0.7732,3189.9,3189.6,0.79152]
[1736844445480,0.7732,3189.9,3189.7,0.31361]
[1736844447377,0.4596,3189.9,3189.6,0.4779]
[1736844447577,0.7732,3189.9,3189.7,0.31361]
[1736844448881,0.4596,3189.9,3189.7,0.31361]
[1736844449190,0.4596,3189.9,3189.6,0.79152]
[1736844449384,0.31361,3189.8,3189.6,0.31362]
[1736844449785,0.31362,3189.6,3189.5,3.2078]
[1736844452179,0.4596,3189.9,3189.5,3.2078]
[1736844452387,0.31362,3189.7,3189.5,3.2078]
[1736844452585,0.31362,3189.6,3189.5,3.2078]
[1736844453874,0.4596,3189.9,3189.5,3.2078]
[1736844454077,0.4596,3189.9,3189.5,5.70459814]
[1736844454291,0.77319,3189.9,3189.7,0.31361]
[1736844454490,0.4596,3189.9,3189.6,0.4878]
[1736844454881,0.7732,3189.9,3189.7,0.31361]